fUSD/lending_fUSD_20260202
["ID","MTS","AMOUNT","RATE_DAILY","PERIOD"]
[404253127,1770006642657,-500.0,0.00013973,2]
[404253128,1770006642668,-500.0,0.00013973,2]
[404253129,1770006642677,-500.0,0.00013973,2]
[404253130,1770006642687,-354.38080813,0.00013973,2]
[404253131,1770006642696,-500.83637505,0.00013973,2]
[404253132,1770006642705,-500.0,0.00013973,2]
[404253133,1770006642714,-500.0,0.00013973,2]
[404253134,1770006642724,-150.00025497,0.00014041,2]
[404253135,1770006642734,-150.0,0.0001412,2]
[404253136,1770006642743,-150.0,0.0001412,2]
[404253137,1770006642752,-500.0,0.0001416,2]
[404253138,1770006642762,-223.34822484,0.00014169,2]
[404253139,1770006642771,-2362.71225703,0.00014169,2]
[404253140,1770006642781,-4131.4741805,0.00014169,2]
[404253141,1770006642790,-300.0,0.00014169,2]
[404253142,1770006642800,-600.0,0.00014169,2]
[404253143,1770006642812,-600.0,0.00014169,2]
[404253144,1770006642821,-600.0,0.00014169,2]
[404253145,1770006642830,-363.53,0.00014177,2]
[404253146,1770006642839,-195.0,0.00014222,2]
[404253147,1770006642849,-195.0,0.00014222,2]
[404253148,1770006642858,-195.0,0.00014222,2]
[404253149,1770006642867,-333.5551537,0.00014222,2]
[404253150,1770006642877,-164.61,0.0001424,2]
[404253151,1770006642887,-600.0,0.0001424,2]
[404253152,1770006642896,-250.0,0.0001424,2]
[404253153,1770006642905,-500.0,0.00014241,2]
[404253154,1770006642915,-274.64819737,0.00014256,2]
[404253155,1770006642924,-19753.85891229,0.00014329,2]
[404253156,1770006642933,-500.0,0.00014384,2]
[404253157,1770006642943,-255.0,0.00014424,2]
[404253158,1770006642952,-9156.55,0.00014504,2]
[404253159,1770006642962,-127685.29,0.00014504,2]
[404253160,1770006642971,-150.99,0.00014504,2]
[404253161,1770006642980,-464.87,0.00014504,2]
[404253162,1770006642990,-9999.99,0.00014504,2]
[404253163,1770006642999,-9999.99,0.00014504,2]
[404253164,1770006643009,-999.99,0.00014504,2]
[404253165,1770006643018,-4999.99,0.00014504,2]
[404253166,1770006643027,-14009.2,0.00014504,2]
[404253167,1770006643037,-150.99,0.00014504,2]
[404253168,1770006643046,-10341.72,0.00014504,2]
[404253169,1770006643057,-9999.99,0.00014504,2]
[404253170,1770006643067,-9999.99,0.00014504,2]
[404253171,1770006643076,-500.0,0.00014515,2]
[404253172,1770006643085,-1000.0,0.00014521,2]
[404253173,1770006643094,-547.44038762,0.00014521,2]
[404253174,1770006643103,-506.79391477,0.00014521,2]
[404253175,1770006643112,-428.50325514,0.00014521,2]
[404253176,1770006643122,-319.99376726,0.00014521,2]
[404253177,1770006643131,-931.25406031,0.00014521,2]
[404253178,1770006643140,-151.0,0.00014539,2]
[404253179,1770006643149,-151.0,0.00014539,2]
[404253180,1770006643159,-151.0,0.00014539,2]
[404253181,1770006643168,-1000.0,0.00014545,2]
[404253182,1770006643177,-151.0,0.00014546,2]
[404253183,1770006643186,-256.05,0.00014552,2]
[404253184,1770006643196,-151.0,0.00014552,2]
[404253185,1770006643205,-151.0,0.00014555,2]
[404253186,1770006643214,-151.0,0.00014556,2]
[404253187,1770006643223,-151.0,0.00014556,2]
[404253188,1770006643233,-1680.0,0.00014639,2]
[404253189,1770006643242,-500.0,0.00014708,2]
[404253190,1770006643252,-157.83,0.00014832,2]
[404253191,1770006643261,-19753.85891229,0.00014833,2]
[404253192,1770006643270,-274.64819737,0.00014985,2]
[404253193,1770006643279,-500.0,0.00014986,2]
[404253194,1770006643288,-250.0,0.00015,2]
[404253195,1770006643298,-1000.0,0.00015068,2]
[404253196,1770006643310,-284.66,0.00015068,2]
[404253197,1770006643319,-209.40437684,0.00015159,2]
[404253198,1770006643328,-174.61919141,0.00015159,2]
[404253199,1770006643338,-209.40437684,0.00015159,2]
[404253200,1770006643348,-500.0,0.00015159,2]
[404253201,1770006643357,-500.0,0.00015159,2]
[404253202,1770006643367,-151.0,0.00015159,2]
[404253203,1770006643376,-500.0,0.00015159,2]
[404253204,1770006643385,-500.0,0.00015159,2]
[404253205,1770006643395,-721.12765535,0.00015159,2]
[404253206,1770006643404,-151.0,0.00015159,2]
[404253207,1770006643414,-500.0,0.00015159,2]
[404253208,1770006643423,-500.0,0.00015159,2]
[404253209,1770006643432,-151.0,0.00015159,2]
[404253210,1770006643441,-500.0,0.00015159,2]
[404253211,1770006643450,-500.0,0.00015159,2]
[404253212,1770006643463,-151.0,0.00015159,2]
[404253213,1770006643472,-500.0,0.00015159,2]
[404253214,1770006643482,-500.0,0.00015159,2]
[404253215,1770006643491,-1428.38747117,0.00015159,2]
[404253216,1770006643502,-151.0,0.00015159,2]
[404253217,1770006643512,-500.0,0.00015159,2]
[404253218,1770006643521,-500.0,0.00015159,2]
[404253219,1770006643532,-151.0,0.00015159,2]
[404253220,1770006643542,-500.0,0.00015159,2]
[404253221,1770006643551,-500.0,0.00015159,2]
[404253222,1770006643563,-151.0,0.00015159,2]
[404253223,1770006643573,-500.0,0.00015159,2]
[404253224,1770006643583,-500.0,0.00015159,2]
[404253225,1770006643592,-151.0,0.00015159,2]
[404253226,1770006643602,-500.0,0.00015159,2]
[404253227,1770006643611,-500.0,0.00015159,2]
[404253228,1770006643621,-151.0,0.00015159,2]
[404253229,1770006643630,-500.0,0.00015159,2]
[404253230,1770006643640,-500.0,0.00015159,2]
[404253231,1770006643649,-151.0,0.00015159,2]
[404253232,1770006643658,-500.0,0.00015159,2]
[404253233,1770006643668,-500.0,0.00015159,2]
[404253234,1770006643678,-151.0,0.00015159,2]
[404253235,1770006643687,-151.49674582,0.00015159,2]
[404253236,1770006643697,-322.6107,0.00015159,2]
[404253237,1770006643706,-859.80605061,0.00015159,2]
[404253238,1770006643715,-250.0,0.00015159,2]
[404253239,1770006643725,-250.0,0.00015159,2]
[404253240,1770006643735,-250.0,0.00015159,2]
[404253241,1770006643744,-250.0,0.00015159,2]
[404253242,1770006643754,-250.0,0.00015159,2]
[404253243,1770006643763,-250.0,0.00015159,2]
[404253244,1770006643773,-250.0,0.00015159,2]
[404253245,1770006643782,-250.0,0.00015159,2]
[404253246,1770006643791,-250.0,0.00015159,2]
[404253247,1770006643802,-250.0,0.00015159,2]
[404253248,1770006643813,-250.0,0.00015159,2]
[404253250,1770006643823,-168.90333538,0.00015159,2]
[404253251,1770006643832,-250.0,0.00015159,2]
[404253252,1770006643842,-209.40437684,0.00015159,2]
[404253253,1770006643852,-250.0,0.00015159,2]
[404253254,1770006643861,-250.0,0.00015159,2]
[404253255,1770006643871,-250.0,0.00015159,2]
[404253256,1770006643880,-250.0,0.00015159,2]
[404253257,1770006643889,-250.0,0.00015159,2]
[404253258,1770006643899,-250.0,0.00015159,2]
[404253259,1770006643908,-250.0,0.00015159,2]
[404253260,1770006643917,-250.0,0.00015159,2]
[404253261,1770006643927,-250.0,0.00015159,2]
[404253262,1770006643936,-250.0,0.00015159,2]
[404253263,1770006643945,-250.0,0.00015159,2]
[404253264,1770006643955,-578.20924308,0.00015159,2]
[404253265,1770006643965,-250.0,0.00015159,2]
[404253266,1770006643974,-250.0,0.00015159,2]
[404253267,1770006643984,-250.0,0.00015159,2]
[404253268,1770006643993,-250.0,0.00015159,2]
[404253269,1770006644003,-500.0,0.00015159,2]
[404253270,1770006644012,-250.0,0.00015159,2]
[404253271,1770006644021,-500.0,0.00015159,2]
[404253272,1770006644030,-250.0,0.00015159,2]
[404253273,1770006644040,-500.0,0.00015159,2]
[404253274,1770006644049,-250.0,0.00015159,2]
[404253275,1770006644060,-500.0,0.00015159,2]
[404253276,1770006644070,-250.0,0.00015159,2]
[404253277,1770006644079,-500.0,0.00015159,2]
[404253278,1770006644089,-250.0,0.00015159,2]
[404253279,1770006644098,-500.0,0.00015159,2]
[404253280,1770006644108,-250.0,0.00015159,2]
[404253281,1770006644117,-500.0,0.00015159,2]
[404253282,1770006644126,-500.0,0.00015159,2]
[404253283,1770006644136,-500.0,0.00015159,2]
[404253284,1770006644145,-500.0,0.00015159,2]
[404253285,1770006644154,-344.38825217,0.00015159,2]
[404253286,1770006644164,-250.0,0.00015159,2]
[404253287,1770006644173,-500.0,0.00015159,2]
[404253288,1770006644183,-250.0,0.00015159,2]
[404253289,1770006644193,-500.0,0.00015159,2]
[404253290,1770006644202,-250.0,0.00015159,2]
[404253291,1770006644212,-250.0,0.00015159,2]
[404253292,1770006644221,-500.0,0.00015159,2]
[404253293,1770006644230,-250.0,0.00015159,2]
[404253294,1770006644239,-500.0,0.00015159,2]
[404253295,1770006644248,-250.0,0.00015159,2]
[404253296,1770006644258,-500.0,0.00015159,2]
[404253297,1770006644267,-250.0,0.00015159,2]
[404253298,1770006644276,-500.0,0.00015159,2]
[404253299,1770006644286,-250.0,0.00015159,2]
[404253300,1770006644295,-500.0,0.00015159,2]
[404253301,1770006644305,-500.0,0.00015159,2]
[404253302,1770006644315,-250.0,0.00015159,2]
[404253303,1770006644324,-209.40437684,0.00015159,2]
[404253304,1770006644333,-500.0,0.00015159,2]
[404253305,1770006644343,-250.0,0.00015159,2]
[404253306,1770006644353,-250.0,0.00015159,2]
[404253307,1770006644362,-500.0,0.00015159,2]
[404253308,1770006644372,-500.0,0.00015159,2]
[404253309,1770006644381,-500.0,0.00015159,2]
[404253310,1770006644391,-500.0,0.00015159,2]
[404253311,1770006644400,-500.0,0.00015159,2]
[404253312,1770006644410,-500.0,0.00015159,2]
[404253313,1770006644419,-500.0,0.00015159,2]
[404253314,1770006644429,-500.0,0.00015159,2]
[404253315,1770006644438,-500.0,0.00015159,2]
[404253316,1770006644448,-500.0,0.00015159,2]
[404253317,1770006644462,-500.0,0.00015159,2]
[404253318,1770006644471,-500.0,0.00015159,2]
[404253319,1770006644480,-500.0,0.00015159,2]
[404253320,1770006644491,-236.43,0.000152,2]
[404253321,1770006644500,-217.15233878,0.00015214,2]
[404253322,1770006644510,-500.0,0.00015256,2]
[404253323,1770006644521,-225.18697532,0.00015269,2]
[404253324,1770006644531,-1689.82698396,0.00015283,2]
[404253325,1770006644541,-233.51889341,0.00015324,2]
[404253326,1770006644550,-19753.85891229,0.00015337,2]
[404253327,1770006644561,-242.15909246,0.00015379,2]
[404253328,1770006644570,-251.11897888,0.00015434,2]
[404253329,1770006644579,-500.0,0.00015473,2]
[404253330,1770006644589,-500.0,0.00015473,2]
[404253331,1770006644598,-500.0,0.00015473,2]
[404253332,1770006644607,-501.29169705,0.00015473,2]
[404253333,1770006644617,-500.0,0.00015473,2]
[404253334,1770006644626,-500.62768041,0.00015473,2]
[404253335,1770006644635,-501.33451157,0.00015473,2]
[404253336,1770006644645,-500.6120606,0.00015473,2]
[404253337,1770006644655,-559.67308476,0.00015473,2]
[404253338,1770006644663,-500.0,0.00015473,2]
[404253339,1770006644673,-163.12661798,0.00015473,2]
[404253340,1770006644682,-163.46067997,0.00015473,2]
[404253341,1770006644691,-500.0,0.00015473,2]
[404253342,1770006644701,-500.0,0.00015473,2]
[404253343,1770006644711,-500.40906893,0.00015473,2]
[404253344,1770006644720,-500.0,0.00015473,2]
[404253345,1770006644730,-486.90150068,0.00015473,2]
[404253346,1770006644739,-464.35211832,0.00015473,2]
[404253347,1770006644749,-500.0,0.00015473,2]
[404253348,1770006644758,-160.54295648,0.00015473,2]
[404253349,1770006644767,-151.07783782,0.00015473,2]
[404253350,1770006644776,-500.0,0.00015473,2]
[404253351,1770006644791,-500.0,0.00015473,2]
[404253352,1770006644800,-500.0,0.00015473,2]
[404253353,1770006644811,-500.0,0.00015473,2]
[404253354,1770006644820,-500.63586771,0.00015473,2]
[404253355,1770006644830,-500.0,0.00015473,2]
[404253356,1770006644841,-200.70028911,0.00015473,2]
[404253357,1770006644851,-500.0,0.00015473,2]
[404253359,1770006644860,-512.94754167,0.00015473,2]
[404253361,1770006644870,-163.34993731,0.00015473,2]
[404253362,1770006644879,-500.46237197,0.00015473,2]
[404253363,1770006644889,-500.0,0.00015473,2]
[404253364,1770006644898,-336.43827265,0.00015473,2]
[404253365,1770006644908,-500.0,0.00015473,2]
[404253366,1770006644916,-161.45537985,0.00015473,2]
[404253367,1770006644926,-501.12989903,0.00015473,2]
[404253368,1770006644935,-500.0,0.00015473,2]
[404253369,1770006644945,-500.0,0.00015473,2]
[404253370,1770006644954,-574.06272579,0.00015473,2]
[404253371,1770006644963,-511.82569439,0.00015473,2]
[404253372,1770006644973,-500.0,0.00015473,2]
[404253373,1770006644982,-500.0,0.00015473,2]
[404253374,1770006644991,-500.0,0.00015473,2]
[404253375,1770006645000,-500.0,0.00015473,2]
[404253376,1770006645010,-500.0,0.00015473,2]
[404253377,1770006645019,-500.41005015,0.00015473,2]
[404253378,1770006645028,-500.0,0.00015473,2]
[404253379,1770006645038,-185.46503654,0.00015473,2]
[404253380,1770006645047,-500.0,0.00015473,2]
[404253381,1770006645058,-500.0,0.00015473,2]
[404253382,1770006645067,-500.0,0.00015473,2]
[404253383,1770006645076,-500.0,0.00015473,2]
[404253384,1770006645086,-500.0,0.00015473,2]
[404253385,1770006645095,-500.0,0.00015473,2]
[404253386,1770006645104,-500.0,0.00015473,2]
[404253387,1770006645113,-500.0,0.00015473,2]
[404253388,1770006645123,-522.30858015,0.00015473,2]
[404253389,1770006645132,-500.0,0.00015473,2]
[404253390,1770006645142,-500.0,0.00015473,2]
[404253391,1770006645151,-500.0,0.00015473,2]
[404253392,1770006645160,-500.0,0.00015473,2]
[404253393,1770006645170,-550.09529227,0.00015473,2]
[404253394,1770006645179,-291.61164288,0.00015473,2]
[404253395,1770006645188,-500.0,0.00015473,2]
[404253396,1770006645198,-501.96102054,0.00015473,2]
[404253397,1770006645208,-500.0,0.00015473,2]
[404253398,1770006645218,-500.0,0.00015473,2]
[404253399,1770006645227,-260.4103811,0.00015489,2]
[404253400,1770006645237,-218.57821558,0.0001551,2]
[404253401,1770006645247,-576.83136917,0.0001551,2]
[404253402,1770006645256,-1017.59890922,0.0001551,2]
[404253403,1770006645266,-270.0455652,0.00015544,2]
[404253404,1770006645276,-150.00025497,0.00015578,2]
[404253405,1770006645286,-280.03725112,0.00015599,2]
[404253406,1770006645295,-1000.0,0.000156,2]
[404253407,1770006645305,-1000.0,0.000156,2]
[404253408,1770006645315,-1000.0,0.000156,2]
[404253409,1770006645324,-1000.0,0.000156,2]
[404253410,1770006645334,-1000.0,0.000156,2]
[404253411,1770006645350,-1000.0,0.000156,2]
[404253412,1770006645360,-1000.0,0.00015602,2]
[404253413,1770006645369,-883.519,0.00015602,2]
[404253414,1770006645378,-618.564,0.00015602,2]
[404253415,1770006645389,-228.39919253,0.0001561,2]
[404253416,1770006645398,-239.86447206,0.0001561,2]
[404253417,1770006645408,-433.0,0.00015623,2]
[404253418,1770006645418,-290.39862941,0.00015654,2]
[404253419,1770006645428,-706.71498953,0.00015697,2]
[404253420,1770006645438,-217.15233878,0.00015707,2]
[404253421,1770006645448,-181.08010149,0.00015707,2]
[404253422,1770006645461,-217.15233878,0.00015707,2]
[404253423,1770006645471,-1481.23780761,0.00015707,2]
[404253424,1770006645480,-891.61887448,0.00015707,2]
[404253425,1770006645489,-217.15233878,0.00015707,2]
[404253426,1770006645500,-301.1433787,0.00015709,2]
[404253427,1770006645509,-274.64819737,0.00015714,2]
[404253428,1770006645518,-5456.35939943,0.00015749,2]
[404253429,1770006645530,-157.83,0.00015759,2]
[404253430,1770006645539,-500.0,0.00015804,2]
[404253431,1770006645549,-19753.85891229,0.00015842,2]
[404253432,1770006645558,-956.83032625,0.00016,2]
[404253433,1770006645568,-270.91542523,0.00016,2]
[404253434,1770006645577,-421.15115649,0.00016,2]
[404253435,1770006645587,-1000.0,0.00016021,2]
[404253436,1770006645596,-1000.0,0.00016021,2]
[404253437,1770006645605,-1000.0,0.00016021,2]
[404253438,1770006645614,-501.94112039,0.00016021,2]
[404253439,1770006645623,-1003.27979337,0.00016021,2]
[404253440,1770006645633,-1000.0,0.00016021,2]
[404253441,1770006645642,-1000.0,0.00016021,2]
[404253442,1770006645651,-1000.0,0.00016021,2]
[404253443,1770006645660,-1000.0,0.00016021,2]
[404253444,1770006645669,-1000.0,0.00016021,2]
[404253445,1770006645678,-1000.0,0.00016021,2]
[404253446,1770006645687,-501.09302375,0.00016021,2]
[404253447,1770006645696,-1000.0,0.00016021,2]
[404253448,1770006645706,-501.89927416,0.00016021,2]
[404253449,1770006645716,-1000.0,0.00016021,2]
[404253450,1770006645726,-502.28798495,0.00016021,2]
[404253451,1770006645735,-1000.0,0.00016021,2]
[404253452,1770006645744,-1000.0,0.00016021,2]
[404253453,1770006645753,-1000.0,0.00016021,2]
[404253454,1770006645763,-899.10712823,0.00016021,2]
[404253455,1770006645772,-1000.0,0.00016021,2]
[404253456,1770006645781,-1000.0,0.00016021,2]
[404253457,1770006645791,-1018.80564021,0.00016021,2]
[404253458,1770006645800,-586.45296103,0.00016021,2]
[404253459,1770006645810,-1000.0,0.00016021,2]
[404253460,1770006645819,-1000.0,0.00016021,2]
[404253461,1770006645829,-1000.0,0.00016021,2]
[404253462,1770006645839,-1000.0,0.00016021,2]
[404253463,1770006645848,-501.08336444,0.00016021,2]
[404253464,1770006645857,-1000.0,0.00016021,2]
[404253465,1770006645867,-1000.0,0.00016021,2]
[404253466,1770006645876,-1000.0,0.00016021,2]
[404253467,1770006645885,-1003.91068608,0.00016021,2]
[404253468,1770006645894,-1000.0,0.00016021,2]
[404253469,1770006645905,-1003.56149344,0.00016021,2]
[404253470,1770006645921,-1000.0,0.00016021,2]
[404253471,1770006645930,-1000.0,0.00016021,2]
[404253472,1770006645940,-1000.0,0.00016021,2]
[404253473,1770006645949,-1000.0,0.00016021,2]
[404253474,1770006645958,-1145.60955598,0.00016021,2]
[404253475,1770006645968,-614.3,0.00016082,2]
[404253476,1770006645978,-859.34,0.00016082,2]
[404253477,1770006645988,-2351.0,0.00016103,2]
[404253478,1770006645997,-3412.42,0.00016116,2]
[404253479,1770006646006,-151.64548884,0.0001612,2]
[404253480,1770006646016,-1000.0,0.00016161,2]
[404253481,1770006646026,-6435.36503884,0.000162,5]
[404253483,1770006646035,-225.18697532,0.00016255,2]
[404253484,1770006646045,-187.78006525,0.00016255,2]
[404253486,1770006646055,-225.18697532,0.00016255,2]
[404253487,1770006646065,-1536.04360649,0.00016255,2]
[404253488,1770006646075,-924.60877284,0.00016255,2]
[404253489,1770006646084,-225.18697532,0.00016255,2]
[404253490,1770006646094,-363.53,0.00016281,2]
[404253491,1770006646103,-6799.4482,0.00016338,2]
[404253492,1770006646112,-19753.85891229,0.00016346,2]
[404253493,1770006646122,-150.0,0.00016356,2]
[404253503,1770006646319,-150.0,0.00016356,2]
[404253505,1770006646330,-150.0,0.00016356,2]
[404253506,1770006646340,-150.0,0.00016356,2]
[404253507,1770006646349,-150.0,0.00016356,2]
[404253508,1770006646359,-15553.21923692,0.00016358,2]
[404253509,1770006646369,-164.61,0.00016384,2]
[404253510,1770006646378,-2835.0,0.000164,2]
[404253511,1770006646388,-163.0,0.000164,2]
[404253512,1770006646397,-167.0,0.000164,2]
[404253513,1770006646407,-1872.11781497,0.00016438,2]
[404253514,1770006646416,-500.0,0.00016438,2]
[404253515,1770006646426,-419.34493254,0.00016438,2]
[404253516,1770006646436,-500.0,0.00016438,2]
[404253517,1770006646446,-500.0,0.00016438,2]
[404253518,1770006646459,-500.0,0.00016438,2]
[404253519,1770006646469,-500.0,0.00016438,2]
[404253520,1770006646478,-500.0,0.00016438,2]
[404253521,1770006646488,-500.0,0.00016438,2]
[404253522,1770006646499,-500.0,0.00016438,2]
[404253523,1770006646509,-500.0,0.00016438,2]
[404253524,1770006646518,-500.0,0.00016438,2]
[404253525,1770006646530,-500.0,0.00016438,2]
[404253526,1770006646539,-500.0,0.00016438,2]
[404253527,1770006646549,-500.0,0.00016438,2]
[404253528,1770006646559,-500.0,0.00016438,2]
[404253529,1770006646568,-500.0,0.00016438,2]
[404253530,1770006646578,-500.0,0.00016438,2]
[404253531,1770006646587,-500.0,0.00016438,2]
[404253532,1770006646597,-500.0,0.00016438,2]
[404253533,1770006646606,-500.0,0.00016438,2]
[404253534,1770006646616,-500.0,0.00016438,2]
[404253535,1770006646625,-500.0,0.00016438,2]
[404253536,1770006646634,-500.0,0.00016438,2]
[404253537,1770006646644,-500.0,0.00016438,2]
[404253538,1770006646654,-500.0,0.00016438,2]
[404253539,1770006646664,-500.0,0.00016438,2]
[404253540,1770006646674,-500.0,0.00016438,2]
[404253541,1770006646684,-500.0,0.00016438,2]
[404253543,1770006646693,-500.0,0.00016438,2]
[404253544,1770006646703,-500.0,0.00016438,2]
[404253545,1770006646713,-500.0,0.00016438,2]
[404253546,1770006646723,-500.0,0.00016438,2]
[404253547,1770006646732,-491.78517318,0.00016438,2]
[404253548,1770006646742,-2344.17668819,0.00016438,2]
[404253550,1770006646750,-2344.17668819,0.00016438,2]
[404253551,1770006646760,-2344.17668819,0.00016438,2]
[404253552,1770006646769,-2344.17668819,0.00016438,2]
[404253553,1770006646779,-2344.17668819,0.00016438,2]
[404253554,1770006646788,-2344.17668819,0.00016438,2]
[404253555,1770006646797,-2344.17668819,0.00016438,2]
[404253557,1770006646808,-2344.17668819,0.00016438,2]
[404253558,1770006646817,-2344.17668819,0.00016438,2]
[404253559,1770006646826,-2344.17668819,0.00016438,2]
[404253560,1770006646835,-2344.17668819,0.00016438,2]
[404253561,1770006646844,-2344.17668819,0.00016438,2]
[404253562,1770006646853,-2344.17668819,0.00016438,2]
[404253563,1770006646863,-2344.17668819,0.00016438,2]
[404253564,1770006646872,-2344.17668819,0.00016438,2]
[404253565,1770006646881,-2344.17668819,0.00016438,2]
[404253566,1770006646890,-2344.17668819,0.00016438,2]
[404253567,1770006646898,-2344.17668819,0.00016438,2]
[404253568,1770006646908,-2344.17668819,0.00016438,2]
[404253569,1770006646919,-2344.17668819,0.00016438,2]
[404253570,1770006646929,-2344.17668819,0.00016438,2]
[404253571,1770006646938,-2344.17668819,0.00016438,2]
[404253572,1770006646947,-2344.17668819,0.00016438,2]
[404253573,1770006646956,-2344.17668819,0.00016438,2]
[404253574,1770006646965,-2344.17668819,0.00016438,2]
[404253575,1770006646974,-2344.17668819,0.00016438,2]
[404253576,1770006646983,-2344.17668819,0.00016438,2]
[404253577,1770006646992,-2344.17668819,0.00016438,2]
[404253578,1770006647001,-2344.17668819,0.00016438,2]
[404253579,1770006647011,-2344.17668819,0.00016438,2]
[404253580,1770006647020,-2344.17668819,0.00016438,2]
[404253581,1770006647030,-2344.17668819,0.00016438,2]
[404253582,1770006647039,-2344.17668819,0.00016438,2]
[404253583,1770006647048,-2344.17668819,0.00016438,2]
[404253584,1770006647058,-2344.17668819,0.00016438,2]
[404253585,1770006647067,-2344.17668819,0.00016438,2]
[404253586,1770006647077,-2344.17668819,0.00016438,2]
[404253587,1770006647086,-2344.17668819,0.00016438,2]
[404253588,1770006647095,-2344.17668819,0.00016438,2]
[404253589,1770006647104,-2344.17668819,0.00016438,2]
[404253590,1770006647114,-2344.17668819,0.00016438,2]
[404253591,1770006647123,-2344.17668819,0.00016438,2]
[404253592,1770006647133,-2344.17668819,0.00016438,2]
[404253593,1770006647142,-2344.17668819,0.00016438,2]
[404253594,1770006647151,-2344.17668819,0.00016438,2]
[404253595,1770006647160,-2274.40952485,0.00016438,2]
[404253596,1770006647170,-2274.40952485,0.00016438,2]
[404253597,1770006647179,-2274.40952485,0.00016438,2]
[404253598,1770006647187,-2274.40952485,0.00016438,2]
[404253599,1770006647197,-2274.40952485,0.00016438,2]
[404253600,1770006647207,-2274.40952485,0.00016438,2]
[404253601,1770006647215,-2274.40952485,0.00016438,2]
[404253602,1770006647225,-2274.40952485,0.00016438,2]
[404253603,1770006647235,-2274.40952485,0.00016438,2]
[404253604,1770006647244,-2274.40952485,0.00016438,2]
[404253605,1770006647253,-2274.40952485,0.00016438,2]
[404253606,1770006647262,-2274.40952485,0.00016438,2]
[404253607,1770006647271,-2274.40952485,0.00016438,2]
[404253608,1770006647280,-2274.40952485,0.00016438,2]
[404253609,1770006647289,-500.0,0.00016438,2]
[404253610,1770006647299,-250.55733734,0.00016438,2]
[404253611,1770006647309,-284.66,0.00016438,2]
[404253612,1770006647319,-800.78453244,0.00016438,2]
[404253613,1770006647328,-274.64819737,0.00016442,2]
[404253614,1770006647339,-10091.57601831,0.00016479,2]
[404253615,1770006647348,-500.0,0.00016493,2]
[404253616,1770006647357,-334.5472959,0.00016528,2]
[404253617,1770006647367,-614.3,0.00016541,2]
[404253618,1770006647377,-500.0,0.00016548,2]
[404253619,1770006647386,-159.99157324,0.00016565,2]
[404253620,1770006647396,-1500.0,0.00016568,2]
[404253621,1770006647405,-1004.26216588,0.00016568,2]
[404253622,1770006647414,-1500.0,0.00016568,2]
[404253623,1770006647424,-1500.0,0.00016568,2]
[404253624,1770006647433,-1500.0,0.00016568,2]
[404253625,1770006647442,-1500.0,0.00016568,2]
[404253626,1770006647452,-1500.0,0.00016568,2]
[404253627,1770006647463,-1500.0,0.00016568,2]
[404253628,1770006647472,-665.40489721,0.00016568,2]
[404253629,1770006647481,-505.45817911,0.00016568,2]
[404253630,1770006647491,-622.87168328,0.00016568,2]
[404253631,1770006647501,-1500.0,0.00016568,2]
[404253632,1770006647510,-1005.54193795,0.00016568,2]
[404253633,1770006647519,-505.38162593,0.00016568,2]
[404253634,1770006647531,-240.83933027,0.00016568,2]
[404253635,1770006647540,-504.30163313,0.00016568,2]
[404253636,1770006647550,-1005.24936027,0.00016568,2]
[404253637,1770006647560,-1500.0,0.00016568,2]
[404253638,1770006647569,-776.88278142,0.00016568,2]
[404253639,1770006647579,-1500.0,0.00016568,2]
[404253640,1770006647588,-1500.0,0.00016568,2]
[404253641,1770006647597,-545.1454494,0.00016568,2]
[404253642,1770006647607,-1500.0,0.00016568,2]
[404253643,1770006647616,-504.6853335,0.00016568,2]
[404253644,1770006647625,-1500.0,0.00016568,2]